[Event "January 2 Early 2024"]
[Site "https://www.chess.com"]
[Date "2024.01.02"]
[Round "5"]
[White "Munoz Galvez, Jhon Edison"]
[Black "Bashirli, Saadat"]
[Result "0-1"]
[Board "100"]
[TimeControl "180+1"]
[WhiteFideId "4403797"]
[BlackFideId "13429990"]
[WhiteElo "2621"]
[BlackElo "2433"]
[WhiteTeam "COL"]
[BlackTeam "AZE"]
[WhiteClock "0:00:00"]
[BlackClock "0:00:07"]

1. d4 {[%clk 0:03:00]}  Nf6 {[%clk 0:02:57]} 2. c4 {[%clk 0:03:00]}  g6 {[%clk 0:02:57]} 3. Nc3 {[%clk 0:03:00]}  Bg7 {[%clk 0:02:53]} 4. e4 {[%clk 0:02:59]}  d6 {[%clk 0:02:53]} 5. Nf3 {[%clk 0:02:59]}  O-O {[%clk 0:02:52]} 6. Be2 {[%clk 0:02:58]}  c5 {[%clk 0:02:51]} 7. d5 {[%clk 0:02:58]}  Nbd7 {[%clk 0:02:47]} 8. O-O {[%clk 0:02:57]}  a6 {[%clk 0:02:41]} 9. a4 {[%clk 0:02:55]}  Ng4 {[%clk 0:02:37]} 10. h3 {[%clk 0:02:53]}  Nge5 {[%clk 0:02:35]} 11. Ne1 {[%clk 0:02:54]}  f5 {[%clk 0:02:33]} 12. f4 {[%clk 0:02:53]}  Nf7 {[%clk 0:02:32]} 13. exf5 {[%clk 0:02:53]}  gxf5 {[%clk 0:02:28]} 14. Nc2 {[%clk 0:02:53]}  Nf6 {[%clk 0:02:24]} 15. Bd3 {[%clk 0:02:53]}  e5 {[%clk 0:02:13]} 16. fxe5 {[%clk 0:02:20]}  Nxe5 {[%clk 0:02:11]} 17. Bxf5 {[%clk 0:02:20]}  Bxf5 {[%clk 0:02:04]} 18. Rxf5 {[%clk 0:02:20]}  Nxc4 {[%clk 0:02:04]} 19. Bg5 {[%clk 0:02:15]}  Qd7 {[%clk 0:01:59]} 20. Qf3 {[%clk 0:02:09]}  Ne5 {[%clk 0:01:51]} 21. Qf4 {[%clk 0:01:41]}  Nh5 {[%clk 0:01:07]} 22. Rxf8+ {[%clk 0:01:35]}  Rxf8 {[%clk 0:01:07]} 23. Qh4 {[%clk 0:01:36]}  Qf7 {[%clk 0:01:03]} 24. Ne3 {[%clk 0:01:30]}  Qg6 {[%clk 0:00:58]} 25. Kh2 {[%clk 0:01:00]}  h6 {[%clk 0:00:53]} 26. Be7 {[%clk 0:00:58]}  Rf4 {[%clk 0:00:49]} 27. Qe1 {[%clk 0:00:37]}  Nd3 {[%clk 0:00:41]} 28. Qe2 {[%clk 0:00:23]}  Qg3+ {[%clk 0:00:37]} 29. Kg1 {[%clk 0:00:18]}  Bd4 {[%clk 0:00:30]} 30. Nd1 {[%clk 0:00:13]}  Ne5 {[%clk 0:00:15]} 31. Bxd6 {[%clk 0:00:03]}  Nf3+ {[%clk 0:00:14]} 32. Qxf3 {[%clk 0:00:03]}  Rxf3 {[%clk 0:00:13]} 33. Bxg3 {[%clk 0:00:02]}  Rxg3 {[%clk 0:00:10]} 34. Kf2 {[%clk 0:00:00]}  Rg5 {[%clk 0:00:07]} 0-1

[Event "January 2 Early 2024"]
[Site "https://www.chess.com"]
[Date "2024.01.02"]
[Round "5"]
[White "Spichkin, Alexander"]
[Black "Andrews, Todd"]
[Result "0-1"]
[Board "102"]
[TimeControl "180+1"]
[WhiteFideId "4144074"]
[BlackFideId "2012456"]
[WhiteElo "2430"]
[BlackElo "2614"]
[WhiteTeam "RUS"]
[BlackTeam "USA"]
[WhiteClock "0:01:05"]
[BlackClock "0:00:13"]

1. f4 {[%clk 0:03:00]}  d5 {[%clk 0:02:59]} 2. Nf3 {[%clk 0:03:00]}  g6 {[%clk 0:02:59]} 3. e3 {[%clk 0:03:00]}  Nh6 {[%clk 0:03:00]} 4. Be2 {[%clk 0:02:59]}  Nf5 {[%clk 0:03:00]} 5. O-O {[%clk 0:03:00]}  c6 {[%clk 0:03:00]} 6. d3 {[%clk 0:03:00]}  Qb6 {[%clk 0:03:00]} 7. d4 {[%clk 0:02:57]}  Bg7 {[%clk 0:02:59]} 8. c4 {[%clk 0:02:56]}  Nd7 {[%clk 0:02:54]} 9. Nc3 {[%clk 0:02:55]}  Nf6 {[%clk 0:02:53]} 10. Bd3 {[%clk 0:02:53]}  O-O {[%clk 0:02:42]} 11. Ne5 {[%clk 0:02:52]}  h5 {[%clk 0:02:23]} 12. h3 {[%clk 0:02:50]}  Ng3 {[%clk 0:02:21]} 13. Rf3 {[%clk 0:02:49]}  Nge4 {[%clk 0:02:20]} 14. Rf1 {[%clk 0:02:43]}  a6 {[%clk 0:01:59]} 15. Qc2 {[%clk 0:02:43]}  Bf5 {[%clk 0:01:55]} 16. b3 {[%clk 0:02:37]}  h4 {[%clk 0:01:44]} 17. Ba3 {[%clk 0:02:37]}  Rfe8 {[%clk 0:01:41]} 18. Rac1 {[%clk 0:02:35]}  Ng3 {[%clk 0:01:40]} 19. Rf2 {[%clk 0:02:32]}  Bxd3 {[%clk 0:01:40]} 20. Nxd3 {[%clk 0:02:32]}  Nfe4 {[%clk 0:01:39]} 21. Nxe4 {[%clk 0:02:26]}  dxe4 {[%clk 0:01:36]} 22. Ne5 {[%clk 0:02:23]}  Rad8 {[%clk 0:01:29]} 23. c5 {[%clk 0:02:14]}  Qa5 {[%clk 0:01:28]} 24. Qb2 {[%clk 0:02:10]}  Nf5 {[%clk 0:01:23]} 25. b4 {[%clk 0:02:10]}  Qc7 {[%clk 0:01:21]} 26. Qd2 {[%clk 0:02:09]}  Rd5 {[%clk 0:01:13]} 27. Bb2 {[%clk 0:02:08]}  Red8 {[%clk 0:01:11]} 28. a4 {[%clk 0:02:08]}  Bxe5 {[%clk 0:01:07]} 29. fxe5 {[%clk 0:02:07]}  Rxe5 {[%clk 0:01:08]} 30. Rcf1 {[%clk 0:02:03]}  Red5 {[%clk 0:01:06]} 31. Rf4 {[%clk 0:02:04]}  e5 {[%clk 0:00:50]} 32. Rxe4 {[%clk 0:01:51]}  exd4 {[%clk 0:00:50]} 33. exd4 {[%clk 0:01:50]}  Qg3 {[%clk 0:00:46]} 34. Rff4 {[%clk 0:01:38]}  a5 {[%clk 0:00:38]} 35. Rg4 {[%clk 0:01:38]}  Qb3 {[%clk 0:00:35]} 36. Ref4 {[%clk 0:01:34]}  Qe3+ {[%clk 0:00:33]} 37. Qxe3 {[%clk 0:01:32]}  Nxe3 {[%clk 0:00:34]} 38. Rxh4 {[%clk 0:01:32]}  axb4 {[%clk 0:00:34]} 39. Re4 {[%clk 0:01:31]}  Nc4 {[%clk 0:00:33]} 40. Ba1 {[%clk 0:01:29]}  b3 {[%clk 0:00:32]} 41. Re2 {[%clk 0:01:30]}  Ra8 {[%clk 0:00:31]} 42. Rhe4 {[%clk 0:01:27]}  Rxa4 {[%clk 0:00:30]} 43. Bc3 {[%clk 0:01:27]}  Ra2 {[%clk 0:00:25]} 44. Re8+ {[%clk 0:01:23]}  Kg7 {[%clk 0:00:25]} 45. Rxa2 {[%clk 0:01:18]}  bxa2 {[%clk 0:00:25]} 46. Ra8 {[%clk 0:01:18]}  Ne3 {[%clk 0:00:20]} 47. Rxa2 {[%clk 0:01:18]}  Rg5 {[%clk 0:00:20]} 48. Re2 {[%clk 0:01:15]}  Nd5 {[%clk 0:00:18]} 49. Be1 {[%clk 0:01:12]}  Rf5 {[%clk 0:00:18]} 50. Bf2 {[%clk 0:01:12]}  g5 {[%clk 0:00:17]} 51. Rb2 {[%clk 0:01:13]}  Nf4 {[%clk 0:00:14]} 52. Rxb7 {[%clk 0:01:11]}  Rd5 {[%clk 0:00:13]} 53. Rc7 {[%clk 0:01:09]}  Ne2+ {[%clk 0:00:13]} 54. Kh2 {[%clk 0:01:08]}  Nxd4 {[%clk 0:00:14]} 55. Bxd4+ {[%clk 0:01:07]}  Rxd4 {[%clk 0:00:15]} 56. Rxc6 {[%clk 0:01:08]}  Rc4 {[%clk 0:00:15]} 57. Kg3 {[%clk 0:01:08]}  f6 {[%clk 0:00:14]} 58. Kf3 {[%clk 0:01:07]}  Kg6 {[%clk 0:00:15]} 59. Ke3 {[%clk 0:01:08]}  Rc2 {[%clk 0:00:15]} 60. Kd3 {[%clk 0:01:09]}  Rxg2 {[%clk 0:00:14]} 61. Re6 {[%clk 0:01:09]}  Rg3+ {[%clk 0:00:14]} 62. Kd4 {[%clk 0:01:08]}  Rxh3 {[%clk 0:00:15]} 63. c6 {[%clk 0:01:09]}  Rh8 {[%clk 0:00:14]} 64. Kd5 {[%clk 0:01:08]}  Rc8 {[%clk 0:00:14]} 65. Kd6 {[%clk 0:01:08]}  Kf5 {[%clk 0:00:15]} 66. Re7 {[%clk 0:01:07]}  g4 {[%clk 0:00:15]} 67. Rg7 {[%clk 0:01:08]}  Kf4 {[%clk 0:00:15]} 68. Ke6 {[%clk 0:01:08]}  Rxc6+ {[%clk 0:00:13]} 69. Kf7 {[%clk 0:01:08]}  f5 {[%clk 0:00:13]} 70. Ke7 {[%clk 0:01:07]}  Kf3 {[%clk 0:00:13]} 71. Kd7 {[%clk 0:01:05]}  Ra6 {[%clk 0:00:13]} 0-1

[Event "January 2 Early 2024"]
[Site "https://www.chess.com"]
[Date "2024.01.02"]
[Round "5"]
[White "Omariev, Maksim"]
[Black "Grycel, Kamil"]
[Result "0-1"]
[Board "103"]
[TimeControl "180+1"]
[WhiteFideId "4193423"]
[BlackFideId "1115499"]
[WhiteElo "2424"]
[BlackElo "2612"]
[WhiteTeam "RUS"]
[BlackTeam "POL"]
[WhiteClock "0:00:00"]
[BlackClock "0:00:07"]

1. g4 {[%clk 0:02:49]}  d6 {[%clk 0:02:55]} 2. Bg2 {[%clk 0:02:45]}  c6 {[%clk 0:02:54]} 3. h3 {[%clk 0:02:43]}  e5 {[%clk 0:02:54]} 4. d4 {[%clk 0:02:43]}  Nd7 {[%clk 0:02:52]} 5. c4 {[%clk 0:02:43]}  h5 {[%clk 0:02:34]} 6. g5 {[%clk 0:02:41]}  Ne7 {[%clk 0:02:33]} 7. Nc3 {[%clk 0:02:37]}  Nf5 {[%clk 0:02:24]} 8. d5 {[%clk 0:02:21]}  Nh4 {[%clk 0:02:15]} 9. Be4 {[%clk 0:02:21]}  Nc5 {[%clk 0:01:52]} 10. Qc2 {[%clk 0:01:57]}  Bd7 {[%clk 0:01:19]} 11. Be3 {[%clk 0:01:31]}  Nxe4 {[%clk 0:01:13]} 12. Qxe4 {[%clk 0:01:30]}  Nf5 {[%clk 0:01:13]} 13. O-O-O {[%clk 0:01:25]}  Nxe3 {[%clk 0:01:03]} 14. Qxe3 {[%clk 0:01:24]}  Be7 {[%clk 0:01:03]} 15. Nf3 {[%clk 0:01:14]}  Rc8 {[%clk 0:00:49]} 16. Qxa7 {[%clk 0:00:51]}  cxd5 {[%clk 0:00:46]} 17. cxd5 {[%clk 0:00:33]}  O-O {[%clk 0:00:38]} 18. Qxb7 {[%clk 0:00:26]}  Bf5 {[%clk 0:00:34]} 19. h4 {[%clk 0:00:18]}  Qa5 {[%clk 0:00:21]} 20. Qb3 {[%clk 0:00:05]}  Rb8 {[%clk 0:00:17]} 21. Qa3 {[%clk 0:00:01]}  Qc7 {[%clk 0:00:13]} 22. Nd2 {[%clk 0:00:01]}  Ra8 {[%clk 0:00:10]} 23. Qb3 {[%clk 0:00:02]}  Rfb8 {[%clk 0:00:09]} 24. Qc4 {[%clk 0:00:02]}  Qb7 {[%clk 0:00:08]} 25. Nb3 {[%clk 0:00:00]}  Rc8 {[%clk 0:00:07]} 0-1

[Event "January 2 Early 2024"]
[Site "https://www.chess.com"]
[Date "2024.01.02"]
[Round "5"]
[White "Rees, Ioan"]
[Black "Manukian, Artak"]
[Result "0-1"]
[Board "104"]
[TimeControl "180+1"]
[WhiteFideId "1801236"]
[BlackFideId "13301373"]
[WhiteElo "2421"]
[BlackElo "2608"]
[WhiteTeam "WLS"]
[BlackTeam "ARM"]
[WhiteClock "0:01:49"]
[BlackClock "0:00:30"]

1. e4 {[%clk 0:03:00]}  c6 {[%clk 0:02:59]} 2. Nc3 {[%clk 0:02:59]}  d5 {[%clk 0:03:00]} 3. Nf3 {[%clk 0:02:59]}  dxe4 {[%clk 0:03:00]} 4. Nxe4 {[%clk 0:03:00]}  Nf6 {[%clk 0:03:01]} 5. Qe2 {[%clk 0:03:00]}  Nxe4 {[%clk 0:03:00]} 6. Qxe4 {[%clk 0:03:01]}  Qd5 {[%clk 0:03:00]} 7. Qxd5 {[%clk 0:02:55]}  cxd5 {[%clk 0:03:01]} 8. d4 {[%clk 0:02:53]}  Bf5 {[%clk 0:02:59]} 9. c3 {[%clk 0:02:49]}  Nc6 {[%clk 0:02:58]} 10. Bb5 {[%clk 0:02:43]}  e6 {[%clk 0:02:54]} 11. Bf4 {[%clk 0:02:41]}  f6 {[%clk 0:02:51]} 12. Bxc6+ {[%clk 0:02:36]}  bxc6 {[%clk 0:02:51]} 13. Kd2 {[%clk 0:02:37]}  g5 {[%clk 0:02:49]} 14. Bg3 {[%clk 0:02:36]}  h5 {[%clk 0:02:49]} 15. h4 {[%clk 0:02:36]}  g4 {[%clk 0:02:48]} 16. Ne1 {[%clk 0:02:32]}  Bh6+ {[%clk 0:02:47]} 17. Kd1 {[%clk 0:02:32]}  Kd7 {[%clk 0:02:38]} 18. Nc2 {[%clk 0:02:32]}  a5 {[%clk 0:02:36]} 19. Ne3 {[%clk 0:02:31]}  Be4 {[%clk 0:02:32]} 20. Rg1 {[%clk 0:02:28]}  Rhe8 {[%clk 0:02:12]} 21. b3 {[%clk 0:02:22]}  e5 {[%clk 0:02:08]} 22. dxe5 {[%clk 0:02:22]}  fxe5 {[%clk 0:02:08]} 23. Ke2 {[%clk 0:02:15]}  d4 {[%clk 0:01:55]} 24. Rgd1 {[%clk 0:02:14]}  c5 {[%clk 0:01:36]} 25. Kf1 {[%clk 0:02:14]}  Kc6 {[%clk 0:01:00]} 26. cxd4 {[%clk 0:02:13]}  exd4 {[%clk 0:00:55]} 27. Nc4 {[%clk 0:02:13]}  Bf8 {[%clk 0:00:46]} 28. Ne5+ {[%clk 0:02:07]}  Kd5 {[%clk 0:00:45]} 29. Nd3 {[%clk 0:02:05]}  Bxd3+ {[%clk 0:00:42]} 30. Rxd3 {[%clk 0:02:05]}  a4 {[%clk 0:00:43]} 31. Rc1 {[%clk 0:01:54]}  axb3 {[%clk 0:00:41]} 32. axb3 {[%clk 0:01:55]}  Ra2 {[%clk 0:00:33]} 33. Re1 {[%clk 0:01:49]}  Rxe1+ {[%clk 0:00:31]} 34. Kxe1 {[%clk 0:01:50]}  c4 {[%clk 0:00:31]} 35. bxc4+ {[%clk 0:01:49]}  Kxc4 {[%clk 0:00:31]} 36. Rd2 {[%clk 0:01:49]}  Bb4 {[%clk 0:00:30]} 0-1

[Event "January 2 Early 2024"]
[Site "https://www.chess.com"]
[Date "2024.01.02"]
[Round "5"]
[White "Luo, Terry"]
[Black "Mayaud, Raphael"]
[Result "1-0"]
[Board "105"]
[TimeControl "180+1"]
[WhiteFideId "30931045"]
[BlackFideId "627151"]
[WhiteElo "2605"]
[BlackElo "2421"]
[WhiteTeam "USA"]
[BlackTeam "FRA"]
[WhiteClock "0:00:31"]
[BlackClock "0:00:08"]

1. Nf3 {[%clk 0:02:59]}  d5 {[%clk 0:02:59]} 2. d4 {[%clk 0:02:58]}  Nf6 {[%clk 0:02:59]} 3. c4 {[%clk 0:02:55]}  c6 {[%clk 0:02:59]} 4. e3 {[%clk 0:02:55]}  Bg4 {[%clk 0:02:53]} 5. Be2 {[%clk 0:02:53]}  e6 {[%clk 0:02:52]} 6. O-O {[%clk 0:02:51]}  Nbd7 {[%clk 0:02:52]} 7. Nbd2 {[%clk 0:02:50]}  Be7 {[%clk 0:02:51]} 8. b3 {[%clk 0:02:50]}  O-O {[%clk 0:02:50]} 9. Bb2 {[%clk 0:02:49]}  a5 {[%clk 0:02:49]} 10. h3 {[%clk 0:02:49]}  Bh5 {[%clk 0:02:49]} 11. a3 {[%clk 0:02:49]}  Re8 {[%clk 0:02:47]} 12. Ne5 {[%clk 0:02:46]}  Bxe2 {[%clk 0:02:46]} 13. Qxe2 {[%clk 0:02:47]}  Nxe5 {[%clk 0:02:47]} 14. dxe5 {[%clk 0:02:48]}  Nd7 {[%clk 0:02:47]} 15. e4 {[%clk 0:02:48]}  Nc5 {[%clk 0:02:04]} 16. Rfd1 {[%clk 0:02:42]}  Qb6 {[%clk 0:01:56]} 17. exd5 {[%clk 0:02:39]}  cxd5 {[%clk 0:01:52]} 18. cxd5 {[%clk 0:02:33]}  exd5 {[%clk 0:01:52]} 19. Rab1 {[%clk 0:02:30]}  Ne6 {[%clk 0:01:48]} 20. Qd3 {[%clk 0:02:22]}  Red8 {[%clk 0:01:44]} 21. Nf3 {[%clk 0:02:21]}  Rac8 {[%clk 0:01:37]} 22. Bd4 {[%clk 0:02:15]}  Bc5 {[%clk 0:01:36]} 23. b4 {[%clk 0:02:04]}  Bxd4 {[%clk 0:01:35]} 24. Nxd4 {[%clk 0:02:05]}  axb4 {[%clk 0:01:16]} 25. Rxb4 {[%clk 0:02:01]}  Qc7 {[%clk 0:01:14]} 26. Re1 {[%clk 0:01:47]}  Qc3 {[%clk 0:01:09]} 27. Qxc3 {[%clk 0:01:42]}  Rxc3 {[%clk 0:01:10]} 28. Nxe6 {[%clk 0:01:34]}  fxe6 {[%clk 0:01:10]} 29. Rxb7 {[%clk 0:01:34]}  Rxa3 {[%clk 0:01:08]} 30. Re7 {[%clk 0:01:35]}  Ra6 {[%clk 0:01:06]} 31. Rb1 {[%clk 0:01:35]}  d4 {[%clk 0:00:38]} 32. Rbb7 {[%clk 0:01:34]}  d3 {[%clk 0:00:39]} 33. Rxg7+ {[%clk 0:01:33]}  Kf8 {[%clk 0:00:39]} 34. Rxh7 {[%clk 0:01:29]}  Kg8 {[%clk 0:00:37]} 35. Rhd7 {[%clk 0:01:29]}  Raa8 {[%clk 0:00:35]} 36. Rxd8+ {[%clk 0:01:26]}  Rxd8 {[%clk 0:00:34]} 37. Rb1 {[%clk 0:01:27]}  Kg7 {[%clk 0:00:32]} 38. f4 {[%clk 0:01:27]}  Kg6 {[%clk 0:00:32]} 39. g4 {[%clk 0:01:28]}  Rd4 {[%clk 0:00:29]} 40. Rd1 {[%clk 0:01:25]}  Rxf4 {[%clk 0:00:27]} 41. Rxd3 {[%clk 0:01:25]}  Re4 {[%clk 0:00:27]} 42. Kg2 {[%clk 0:01:24]}  Rxe5 {[%clk 0:00:27]} 43. Kg3 {[%clk 0:01:25]}  Re1 {[%clk 0:00:27]} 44. h4 {[%clk 0:01:23]}  e5 {[%clk 0:00:26]} 45. Ra3 {[%clk 0:01:22]}  Kf6 {[%clk 0:00:24]} 46. Ra6+ {[%clk 0:01:22]}  Kf7 {[%clk 0:00:24]} 47. h5 {[%clk 0:01:22]}  e4 {[%clk 0:00:22]} 48. Kf4 {[%clk 0:01:20]}  e3 {[%clk 0:00:20]} 49. Kg5 {[%clk 0:00:56]}  e2 {[%clk 0:00:20]} 50. Ra2 {[%clk 0:00:55]}  Kg7 {[%clk 0:00:18]} 51. Ra7+ {[%clk 0:00:54]}  Kf8 {[%clk 0:00:18]} 52. Ra2 {[%clk 0:00:49]}  Kf7 {[%clk 0:00:18]} 53. h6 {[%clk 0:00:49]}  Kf8 {[%clk 0:00:16]} 54. h7 {[%clk 0:00:37]}  Kg7 {[%clk 0:00:16]} 55. Ra7+ {[%clk 0:00:38]}  Kh8 {[%clk 0:00:16]} 56. Kg6 {[%clk 0:00:39]}  Ra1 {[%clk 0:00:10]} 57. Rxa1 {[%clk 0:00:31]}  e1=Q {[%clk 0:00:08]} 58. Ra8+ {[%clk 0:00:31]} 1-0

[Event "January 2 Early 2024"]
[Site "https://www.chess.com"]
[Date "2024.01.02"]
[Round "5"]
[White "Assylov, Miras"]
[Black "Seletsky, Grigory"]
[Result "1/2-1/2"]
[Board "106"]
[TimeControl "180+1"]
[WhiteFideId "13728873"]
[BlackFideId "14112191"]
[WhiteElo "2604"]
[BlackElo "2419"]
[WhiteTeam "KAZ"]
[BlackTeam "UKR"]
[WhiteClock "0:00:02"]
[BlackClock "0:00:11"]

1. Nf3 {[%clk 0:02:55]}  b5 {[%clk 0:02:56]} 2. a4 {[%clk 0:02:52]}  b4 {[%clk 0:02:54]} 3. e4 {[%clk 0:02:44]}  c5 {[%clk 0:02:52]} 4. Bc4 {[%clk 0:02:43]}  e6 {[%clk 0:02:51]} 5. e5 {[%clk 0:02:39]}  Bb7 {[%clk 0:02:50]} 6. d3 {[%clk 0:02:39]}  Nc6 {[%clk 0:02:48]} 7. O-O {[%clk 0:02:37]}  Nge7 {[%clk 0:02:48]} 8. Re1 {[%clk 0:02:36]}  Ng6 {[%clk 0:02:48]} 9. Nbd2 {[%clk 0:02:28]}  d5 {[%clk 0:02:44]} 10. exd6 {[%clk 0:02:27]}  Bxd6 {[%clk 0:02:45]} 11. Ne4 {[%clk 0:02:26]}  O-O {[%clk 0:02:45]} 12. Nxd6 {[%clk 0:02:26]}  Qxd6 {[%clk 0:02:43]} 13. Bg5 {[%clk 0:02:16]}  Nd4 {[%clk 0:02:33]} 14. Nxd4 {[%clk 0:02:10]}  Qxd4 {[%clk 0:02:32]} 15. Be3 {[%clk 0:02:07]}  Qd6 {[%clk 0:02:30]} 16. f3 {[%clk 0:02:06]}  Bd5 {[%clk 0:02:22]} 17. Qe2 {[%clk 0:01:59]}  Rfd8 {[%clk 0:02:18]} 18. Qf2 {[%clk 0:01:53]}  Rac8 {[%clk 0:02:18]} 19. b3 {[%clk 0:01:45]}  Ne7 {[%clk 0:02:11]} 20. Bg5 {[%clk 0:01:38]}  f6 {[%clk 0:02:09]} 21. Be3 {[%clk 0:01:24]}  Nf5 {[%clk 0:02:07]} 22. Bc1 {[%clk 0:01:09]}  Nd4 {[%clk 0:01:54]} 23. Bb2 {[%clk 0:01:08]}  e5 {[%clk 0:01:53]} 24. Bxd4 {[%clk 0:01:04]}  exd4 {[%clk 0:01:49]} 25. Bxd5+ {[%clk 0:01:02]}  Qxd5 {[%clk 0:01:49]} 26. Re4 {[%clk 0:01:02]}  Re8 {[%clk 0:01:46]} 27. Rae1 {[%clk 0:01:02]}  Qd7 {[%clk 0:01:45]} 28. Qe2 {[%clk 0:00:57]}  Kf7 {[%clk 0:01:46]} 29. Qf2 {[%clk 0:00:49]}  f5 {[%clk 0:01:43]} 30. Re5 {[%clk 0:00:46]}  g6 {[%clk 0:01:30]} 31. Qh4 {[%clk 0:00:44]}  h5 {[%clk 0:01:29]} 32. Qg5 {[%clk 0:00:29]}  Rxe5 {[%clk 0:01:18]} 33. Rxe5 {[%clk 0:00:30]}  Qd6 {[%clk 0:01:05]} 34. Re2 {[%clk 0:00:15]}  Re8 {[%clk 0:01:04]} 35. Rxe8 {[%clk 0:00:13]}  Kxe8 {[%clk 0:01:04]} 36. Qh6 {[%clk 0:00:13]}  Qe6 {[%clk 0:00:59]} 37. Qh8+ {[%clk 0:00:11]}  Kd7 {[%clk 0:00:58]} 38. Kf1 {[%clk 0:00:11]}  Qe3 {[%clk 0:00:55]} 39. Qg7+ {[%clk 0:00:10]}  Kc8 {[%clk 0:00:55]} 40. Qxa7 {[%clk 0:00:04]}  Qc1+ {[%clk 0:00:53]} 41. Kf2 {[%clk 0:00:05]}  Qxc2+ {[%clk 0:00:42]} 42. Kg3 {[%clk 0:00:05]}  g5 {[%clk 0:00:16]} 43. h4 {[%clk 0:00:02]}  f4+ {[%clk 0:00:16]} 44. Kh2 {[%clk 0:00:02]}  g4 {[%clk 0:00:11]} 45. Qa6+ {[%clk 0:00:02]}  Kc7 {[%clk 0:00:11]} 46. Qa7+ {[%clk 0:00:03]}  Kc8 {[%clk 0:00:11]} 47. Qa8+ {[%clk 0:00:03]}  Kc7 {[%clk 0:00:11]} 48. Qa5+ {[%clk 0:00:03]}  Kc8 {[%clk 0:00:10]} 49. Qa6+ {[%clk 0:00:03]}  Kc7 {[%clk 0:00:10]} 50. Qa7+ {[%clk 0:00:02]}  Kc8 {[%clk 0:00:11]} 1/2-1/2

[Event "January 2 Early 2024"]
[Site "https://www.chess.com"]
[Date "2024.01.02"]
[Round "5"]
[White "Tiarks, Jann-Christian"]
[Black "Toman, Ondrej"]
[Result "1-0"]
[Board "107"]
[TimeControl "180+1"]
[WhiteFideId "12951595"]
[BlackFideId "344516"]
[WhiteElo "2414"]
[BlackElo "2601"]
[WhiteTeam "GER"]
[BlackTeam "CZE"]
[WhiteClock "0:00:33"]
[BlackClock "0:00:05"]

1. e4 {[%clk 0:02:56]}  c6 {[%clk 0:02:59]} 2. d4 {[%clk 0:02:47]}  d5 {[%clk 0:03:00]} 3. exd5 {[%clk 0:02:47]}  cxd5 {[%clk 0:03:00]} 4. c4 {[%clk 0:02:45]}  Nf6 {[%clk 0:02:59]} 5. Nc3 {[%clk 0:02:45]}  g6 {[%clk 0:02:56]} 6. Nf3 {[%clk 0:02:42]}  Bg7 {[%clk 0:02:56]} 7. a3 {[%clk 0:02:43]}  O-O {[%clk 0:02:55]} 8. c5 {[%clk 0:02:43]}  Bg4 {[%clk 0:02:51]} 9. Be2 {[%clk 0:02:43]}  Ne4 {[%clk 0:02:39]} 10. O-O {[%clk 0:02:40]}  Nc6 {[%clk 0:02:34]} 11. Be3 {[%clk 0:02:40]}  Rc8 {[%clk 0:01:59]} 12. h3 {[%clk 0:02:38]}  Bxf3 {[%clk 0:01:57]} 13. Bxf3 {[%clk 0:02:39]}  Nxc3 {[%clk 0:01:56]} 14. bxc3 {[%clk 0:02:40]}  Na5 {[%clk 0:01:49]} 15. Qa4 {[%clk 0:02:25]}  a6 {[%clk 0:01:40]} 16. Rab1 {[%clk 0:02:16]}  Rb8 {[%clk 0:01:36]} 17. Bf4 {[%clk 0:02:13]}  e5 {[%clk 0:01:16]} 18. dxe5 {[%clk 0:02:09]}  Nc4 {[%clk 0:01:12]} 19. Rfd1 {[%clk 0:02:05]}  Nxe5 {[%clk 0:00:49]} 20. Bxd5 {[%clk 0:02:03]}  Qe7 {[%clk 0:00:36]} 21. Qb4 {[%clk 0:01:24]}  Rfc8 {[%clk 0:00:27]} 22. c6 {[%clk 0:01:20]}  Qxb4 {[%clk 0:00:25]} 23. cxb4 {[%clk 0:01:21]}  bxc6 {[%clk 0:00:24]} 24. Ba2 {[%clk 0:01:20]}  Rd8 {[%clk 0:00:23]} 25. Re1 {[%clk 0:01:18]}  Re8 {[%clk 0:00:20]} 26. Rbd1 {[%clk 0:01:18]}  Rb7 {[%clk 0:00:18]} 27. Re3 {[%clk 0:01:11]}  Rbe7 {[%clk 0:00:17]} 28. Rde1 {[%clk 0:01:09]}  Kf8 {[%clk 0:00:15]} 29. Kf1 {[%clk 0:01:06]}  f6 {[%clk 0:00:11]} 30. g4 {[%clk 0:01:03]}  g5 {[%clk 0:00:10]} 31. Bg3 {[%clk 0:01:03]}  Rd8 {[%clk 0:00:05]} 32. Bxe5 {[%clk 0:01:00]}  fxe5 {[%clk 0:00:05]} 33. Rf3+ {[%clk 0:00:58]}  Ke8 {[%clk 0:00:05]} 34. Rc1 {[%clk 0:00:58]}  Rd6 {[%clk 0:00:04]} 35. Rf5 {[%clk 0:00:55]}  h6 {[%clk 0:00:04]} 36. Bb3 {[%clk 0:00:52]}  Rc7 {[%clk 0:00:04]} 37. Ba4 {[%clk 0:00:52]}  Ke7 {[%clk 0:00:03]} 38. Bb3 {[%clk 0:00:51]}  Bf6 {[%clk 0:00:04]} 39. Rf3 {[%clk 0:00:50]}  Rd4 {[%clk 0:00:04]} 40. Rfc3 {[%clk 0:00:49]}  Kd6 {[%clk 0:00:04]} 41. Ba4 {[%clk 0:00:47]}  e4 {[%clk 0:00:03]} 42. Rxc6+ {[%clk 0:00:47]}  Rxc6 {[%clk 0:00:03]} 43. Rxc6+ {[%clk 0:00:48]}  Ke5 {[%clk 0:00:04]} 44. Ke2 {[%clk 0:00:48]}  Rd3 {[%clk 0:00:04]} 45. Rxa6 {[%clk 0:00:47]}  Rxa3 {[%clk 0:00:04]} 46. Bb5 {[%clk 0:00:47]}  Rb3 {[%clk 0:00:05]} 47. Bd7 {[%clk 0:00:42]}  Bd8 {[%clk 0:00:02]} 48. b5 {[%clk 0:00:41]}  Kf4 {[%clk 0:00:02]} 49. Ra8 {[%clk 0:00:39]}  Rb2+ {[%clk 0:00:02]} 50. Kf1 {[%clk 0:00:38]}  Bb6 {[%clk 0:00:03]} 51. Rf8+ {[%clk 0:00:37]}  Ke5 {[%clk 0:00:03]} 52. Rf5+ {[%clk 0:00:37]}  Kd6 {[%clk 0:00:03]} 53. Bc6 {[%clk 0:00:35]}  Bd4 {[%clk 0:00:03]} 54. Bxe4 {[%clk 0:00:34]}  Rb3 {[%clk 0:00:03]} 55. Kg2 {[%clk 0:00:33]}  Ke6 {[%clk 0:00:03]} 56. Bd5+ {[%clk 0:00:32]}  Kd6 {[%clk 0:00:03]} 57. Bxb3 {[%clk 0:00:33]}  Bb6 {[%clk 0:00:03]} 58. Rf6+ {[%clk 0:00:33]}  Kc5 {[%clk 0:00:04]} 59. Rxh6 {[%clk 0:00:33]}  Ba5 {[%clk 0:00:04]} 60. Ba4 {[%clk 0:00:32]}  Bd2 {[%clk 0:00:04]} 61. b6 {[%clk 0:00:32]}  Bf4 {[%clk 0:00:03]} 62. b7 {[%clk 0:00:32]}  Kb4 {[%clk 0:00:04]} 63. Rb6+ {[%clk 0:00:31]}  Kxa4 {[%clk 0:00:04]} 64. b8=Q {[%clk 0:00:32]}  Bxb8 {[%clk 0:00:05]} 65. Rxb8 {[%clk 0:00:33]}  Ka5 {[%clk 0:00:05]} 66. h4 {[%clk 0:00:33]}  Ka6 {[%clk 0:00:05]} 67. hxg5 {[%clk 0:00:33]} 1-0